{"text_format":"3","workbook":"xlsx","n_sheets":2,"sheets":["CONSOLIDATED PRICING SCHEDULE ","POINT BRANCH COURT"],"not_rendered":{"images":1,"defined_names":5},"read":"whole","date_system":"1900"}

{"sheet":"CONSOLIDATED PRICING SCHEDULE ","index":0,"n_rows":22,"n_cols":5,"rows_kept":22,"merged":[[12,0,12,1],[18,1,21,1],[18,2,18,3],[18,4,18,5],[19,2,19,3],[19,4,19,5],[20,2,20,3],[20,4,20,5],[21,2,21,3],[21,4,21,5]]}
[null,"          SUPPLY CHAIN MANAGEMENT"]
[null,"              Pricing schedule"]
["RFx No","RFB XX 2025"]
["RFx Title","APPOINTMENT OF SERVICE PROVIDER FOR PROCUREMENT OF CLEANING AND GARDENING SERVICES FOR VARIOUS MAGISTRATE COURT FOR A PERIOD OF 36 MONTHS: KWA-ZULU NATAL PROVINCE"]
["Bidder Name "]
[]
["1. INSTRUCTION FOR COMPLETING THE PRICING SCHEDULE"]
["(a)  THIS PRICING SCHEDULE MUST BE SUBMITTED SEPARATELY FROM THE TECHNICAL RESPONSE, failing which the BID may be DISQUALIFIED."]
["(b)  Bidder must complete/enter YELLOW cells only"]
["(c)  Unit and Line prices must be VAT EXCLUSIVE and in South African Rand (ZAR) currency."]
["(e) The price must include all cost to deliver the goods or render the service, including all applicable taxes, duty fees, logistics/delivery, storage, labour, overtime and subsistance and travel"]
[]
[]
["ITEM","NAME OF COURT","TOTAL PRICE\n(incl VAT)"]
[1,"POINT BRANCH COURT",{"$f":"'POINT BRANCH COURT'!H29","v":0}]
[null,"TOTAL",{"$f":"'POINT BRANCH COURT'!H29","v":0}]
[]
[]
[null,"I, the bidder, confirm that the price(s) and rate(s) quoted cover all the goods and/or works specified in the bidding documents; that the price(s) or rate(s) cover all my obligations and I accept that any mistakes regarding price(s), rate(s) or calculations will be at my own risk.\n[Note: First convert to PDF, then add signature]"]
[null,null,"Name (above)",null,"Capacity"]
[]
[null,null,"Signature (above)",null,"Date"]

{"sheet":"POINT BRANCH COURT","index":1,"n_rows":35,"n_cols":9,"rows_kept":35,"merged":[[12,0,12,2],[12,3,12,6],[31,1,34,1],[31,2,31,3],[31,4,31,5],[32,2,32,3],[32,4,32,5],[33,2,33,3],[33,4,33,5],[34,2,34,3],[34,4,34,5]]}
[null,"          SUPPLY CHAIN MANAGEMENT"]
[null,"              Pricing schedule"]
["RFx No","RFB 07 2025"]
["RFx Title","APPOINTMENT OF SERVICE PROVIDER FOR PROCUREMENT OF CLEANING AND GARDENING SERVICES FOR VARIOUS MAGISTRATE COURT FOR A PERIOD OF 36 MONTHS: KWA-ZULU NATAL PROVINCE"]
["Bidder Name "]
[]
["1. INSTRUCTION FOR COMPLETING THE PRICING SCHEDULE"]
["(a)  THIS PRICING SCHEDULE MUST BE SUBMITTED SEPARATELY FROM THE TECHNICAL RESPONSE, failing which the BID may be DISQUALIFIED."]
["(b)  Bidder must complete/enter YELLOW cells only"]
["(c)  Unit and Line prices must be VAT EXCLUSIVE and in South African Rand (ZAR) currency."]
["(e) The price must include all cost to deliver the goods or render the service, including all applicable taxes, duty fees, logistics/delivery, storage, labour, overtime and subsistance and travel"]
[]
[{"$nulls":3}," CLEANING AND GARDENING SERVICES"]
["ITEM","NAMEN OF COURT","QUANTITY","UNIT PRICE\n(excl VAT)","VAT RATE","UNIT PRICE\n(incl VAT)","TOTAL PRICE\n(incl VAT)","36-MONTH TOTAL ( incl VAT)","Price clarification comment"]
[null,"POINT BRANCH COURT"]
[1,"Labour:"]
[null,"Bidders are expected to pay their employees a salary not less than the minimum wage determined by the Department of labour. Cleaners are required to work an average of 22 days a month."]
[null,"Monthly Salaries / UIF / Compensation fund / Provident fund (cleaners)",5,0,{"v":0,"d":"0%"},{"$f":"D18 * (1+E18)","v":0},{"$f":"(D18 * (1+E18)) * C18","v":0},{"$f":"G18*36","v":0}]
[null,"Monthly Salaries / UIF / Compensation fund / Provident fund (Gardner)",3,0,{"v":0,"d":"0%"},{"$f":"D19 * (1+E19)","v":0},{"$f":"(D19 * (1+E19)) * C19","v":0},{"$f":"G19*36","v":0}]
[null,"Monthly Salaries / UIF / Compensation fund / Provident fund (full time supervisor)",1,0,{"v":0,"d":"0%"},0,0,0]
[null,"Cleaning Material:"]
[null,"Monthly Pricing for all cleaning material for the duration of the contract including compulsory Disinfectants (see attached Schedule C)",1,0,{"v":0.15,"d":"15%"},0,0,0]
[null,"Toiletries:  Toilet paper for ablution areas  must be replenished frequenltly as when needed"]
[null,"Monthly pricing for Two ply, white and good quality toilet paper. Toilet paper to consist of 350 sheets per roll (2x 48 packs per month)",2,0,{"v":0.15,"d":"15%"},0,0,0]
[null,"Monthly pricing forPaper hand towels must be replenished one a week in 2 toilets . Tidy towel folded, good quality, 2 ply white only. (1x 8 pack per month)",1,0,{"v":0.15,"d":"15%"},0,0,0]
[null,"Hygiene Services "]
[null,"Monthly pricing for She Bins and with  Bi-Weekly service/maintenance",5,0,{"v":0.15,"d":"15%"},0,0,0]
[null,"Annual pricing for Anti-bacterial Hand Soap (2x 20l for 12 months)",1,0,{"v":0.15,"d":"15%"},0,0,{"$f":"G28*3","v":0}]
[null,"TOTAL",null,{"$f":"SUM(D18:D28)","v":0},null,{"$f":"SUM(F18:F28)","v":0},{"$f":"SUM(G18:G28)","v":0},{"$f":"SUM(H18:H28)","v":0}]
[]
[]
[null,"I, the bidder, confirm that the price(s) and rate(s) quoted cover all the goods and/or works specified in the bidding documents; that the price(s) or rate(s) cover all my obligations and I accept that any mistakes regarding price(s), rate(s) or calculations will be at my own risk.\n[Note: First convert to PDF, then add signature]"]
[null,null,"Name (above)",null,"Capacity"]
[]
[null,null,"Signature (above)",null,"Date"]